Workbook

Sheet 🏠
C1: Planilha de Gastos
B3: 1. | C3: Comece registrando sua transação de entrada ou saída
B5: 2. | C5: Você pode cadastrar as categorias mais frequentes de transações. Já colocamos as mais comuns como "salário" e "mercado" por exemplo! :)
B7: 3. | C7: Você pode consultar e editar todas as transações!
B9: 4. | C9: A qualquer momento você pode clicar no botão para desfazer a transação mais recente ou reiniciar a planilha (cuidado para não perder seus dados!)
B11: 5. | C11: A planilha roda com macros, não se esqueça de habilitá-las para poder utilizá-la corretamente! Basta clicar no botão "Habilitar Edição" e logo em seguida no botão "Habilitar Conteúdo"

Sheet Resumo
F2: Ano | G2: 2022
F3: Mês | G3: Fevereiro
F4: Resumo | G4: Valor (R$)
F5: 🟢 Entrou | G5: ='Graph Data'!G3 -> 2500
F6: 🔴 Saiu | G6: ='Graph Data'!G4 -> 1600.5
F7: Sobrou | G7: ='Graph Data'!G5 -> 899.5
F8: Acumulado | G8: =SUM(Transações!E2:E1048576)-SUM(Transações!D2:D1048576) -> 7948.75

Sheet Graph Data (hidden)
A1: Mês | B1: =MATCH(Resumo!$G$3,'Graph Data'!C3:C14,0) -> 2 | I1: =D2 -> INICIO | K1: =DATE(J3,1,1) -> 2022-01-01 | L1: =DATE($J$3,2,1) -> 2022-02-01 | M1: =DATE($J$3,3,1) -> 2022-03-01 | N1: =DATE($J$3,4,1) -> 2022-04-01 | O1: =DATE($J$3,5,1) -> 2022-05-01 | P1: =DATE($J$3,6,1) -> 2022-06-01 | Q1: =DATE($J$3,7,1) -> 2022-07-01 | R1: =DATE($J$3,8,1) -> 2022-08-01 | S1: =DATE($J$3,9,1) -> 2022-09-01 | T1: =DATE($J$3,10,1) -> 2022-10-01 | U1: =DATE($J$3,11,1) -> 2022-11-01 | V1: =DATE($J$3,12,1) -> 2022-12-01
A2: Graph Data | C2: Mês | D2: INICIO | E2: =DATE(Resumo!G2,'Graph Data'!B1,1) -> 2022-02-01 | F2: Table Data | H2: Ano | I2: =D3 -> TÉRMINO | K2: =EOMONTH(K1,0) -> 2022-01-31 | L2: =EOMONTH(L1,0) -> 2022-02-28 | M2: 2022-03-31 | N2: 2022-04-30 | O2: 2022-05-31 | P2: 2022-06-30 | Q2: 2022-07-31 | R2: 2022-08-31 | S2: 2022-09-30 | T2: 2022-10-31 | U2: 2022-11-30 | V2: 2022-12-31
A3: Mercado | B3: =IF(SUMIFS(Transações!D:D,Transações!A:A,">="&'Graph Data'!$E$2,Transações!A:A,"<="&'Graph Data'!$E$3,Transações!C:C,'Graph Data'!A3)=0,NA(),SUMIFS(Transações!D:D,Transações!A:A,">="&'Graph Data'!$E$2,Transações!A:A,"<="&'Graph Data'!$E$3,Transações!C:C,'Graph Data'!A3)) ->  | C3: Janeiro | D3: TÉRMINO | E3: =EOMONTH(E2,0) -> 2022-02-28 | F3: Entrou | G3: =SUMIFS(Transações!E:E,Transações!A:A,">="&'Graph Data'!$E$2,Transações!A:A,"<="&'Graph Data'!$E$3,Transações!B:B,"Entrada") -> 2500 | H3: =IF(_xlfn._xlws.SORT(_xlfn.UNIQUE(Transações!G2:G1048576))=0,"",_xlfn._xlws.SORT(_xlfn.UNIQUE(Transações!G2:G1048576))) -> 2021 | I3: Chart Data | J3: =Resumo!G2 -> 2022 | K3: Janeiro | L3: Fevereiro | M3: Março | N3: Abril | O3: Maio | P3: Junho | Q3: Julho | R3: Agosto | S3: Setembro | T3: Outubro | U3: Novembro | V3: Dezembro
A4: Aluguel | B4: =IF(SUMIFS(Transações!D:D,Transações!A:A,">="&'Graph Data'!$E$2,Transações!A:A,"<="&'Graph Data'!$E$3,Transações!C:C,'Graph Data'!A4)=0,NA(),SUMIFS(Transações!D:D,Transações!A:A,">="&'Graph Data'!$E$2,Transações!A:A,"<="&'Graph Data'!$E$3,Transações!C:C,'Graph Data'!A4)) -> 1150.5 | C4: Fevereiro | F4: Saiu | G4: =SUMIFS(Transações!D:D,Transações!A:A,">="&'Graph Data'!$E$2,Transações!A:A,"<="&'Graph Data'!$E$3,Transações!B:B,"Saída") -> 1600.5 | H4: 2022 | J4: Entrou | K4: =SUMIFS(Transações!$E$2:$E$1048576,Transações!$A$2:$A$1048576,">="&K1,Transações!$A$2:$A$1048576,"<="&K2,Transações!$B$2:$B$1048576,"Entrada") -> 12000 | L4: =SUMIFS(Transações!$E$2:$E$1048576,Transações!$A$2:$A$1048576,">="&L1,Transações!$A$2:$A$1048576,"<="&L2,Transações!$B$2:$B$1048576,"Entrada") -> 2500 | M4: =SUMIFS(Transações!$E$2:$E$1048576,Transações!$A$2:$A$1048576,">="&M1,Transações!$A$2:$A$1048576,"<="&M2,Transações!$B$2:$B$1048576,"Entrada") -> 0 | N4: =SUMIFS(Transações!$E$2:$E$1048576,Transações!$A$2:$A$1048576,">="&N1,Transações!$A$2:$A$1048576,"<="&N2,Transações!$B$2:$B$1048576,"Entrada") -> 1000 | O4: =SUMIFS(Transações!$E$2:$E$1048576,Transações!$A$2:$A$1048576,">="&O1,Transações!$A$2:$A$1048576,"<="&O2,Transações!$B$2:$B$1048576,"Entrada") -> 0 | P4: =SUMIFS(Transações!$E$2:$E$1048576,Transações!$A$2:$A$1048576,">="&P1,Transações!$A$2:$A$1048576,"<="&P2,Transações!$B$2:$B$1048576,"Entrada") -> 0 | Q4: =SUMIFS(Transações!$E$2:$E$1048576,Transações!$A$2:$A$1048576,">="&Q1,Transações!$A$2:$A$1048576,"<="&Q2,Transações!$B$2:$B$1048576,"Entrada") -> 0 | R4: =SUMIFS(Transações!$E$2:$E$1048576,Transações!$A$2:$A$1048576,">="&R1,Transações!$A$2:$A$1048576,"<="&R2,Transações!$B$2:$B$1048576,"Entrada") -> 0 | S4: =SUMIFS(Transações!$E$2:$E$1048576,Transações!$A$2:$A$1048576,">="&S1,Transações!$A$2:$A$1048576,"<="&S2,Transações!$B$2:$B$1048576,"Entrada") -> 0 | T4: =SUMIFS(Transações!$E$2:$E$1048576,Transações!$A$2:$A$1048576,">="&T1,Transações!$A$2:$A$1048576,"<="&T2,Transações!$B$2:$B$1048576,"Entrada") -> 0 | U4: =SUMIFS(Transações!$E$2:$E$1048576,Transações!$A$2:$A$1048576,">="&U1,Transações!$A$2:$A$1048576,"<="&U2,Transações!$B$2:$B$1048576,"Entrada") -> 0 | V4: =SUMIFS(Transações!$E$2:$E$1048576,Transações!$A$2:$A$1048576,">="&V1,Transações!$A$2:$A$1048576,"<="&V2,Transações!$B$2:$B$1048576,"Entrada") -> 0
A5: Salário | B5: =IF(SUMIFS(Transações!D:D,Transações!A:A,">="&'Graph Data'!$E$2,Transações!A:A,"<="&'Graph Data'!$E$3,Transações!C:C,'Graph Data'!A5)=0,NA(),SUMIFS(Transações!D:D,Transações!A:A,">="&'Graph Data'!$E$2,Transações!A:A,"<="&'Graph Data'!$E$3,Transações!C:C,'Graph Data'!A5)) ->  | C5: Março | F5: Sobrou | G5: =G3-G4 -> 899.5 | J5: Saiu | K5: =SUMIFS(Transações!$D$2:$D$1048576,Transações!$A$2:$A$1048576,">="&K1,Transações!$A$2:$A$1048576,"<="&K2,Transações!$B$2:$B$1048576,"Saída") -> 6750.75 | L5: =SUMIFS(Transações!$D$2:$D$1048576,Transações!$A$2:$A$1048576,">="&L1,Transações!$A$2:$A$1048576,"<="&L2,Transações!$B$2:$B$1048576,"Saída") -> 1600.5 | M5: =SUMIFS(Transações!$D$2:$D$1048576,Transações!$A$2:$A$1048576,">="&M1,Transações!$A$2:$A$1048576,"<="&M2,Transações!$B$2:$B$1048576,"Saída") -> 0 | N5: =SUMIFS(Transações!$D$2:$D$1048576,Transações!$A$2:$A$1048576,">="&N1,Transações!$A$2:$A$1048576,"<="&N2,Transações!$B$2:$B$1048576,"Saída") -> 200 | O5: =SUMIFS(Transações!$D$2:$D$1048576,Transações!$A$2:$A$1048576,">="&O1,Transações!$A$2:$A$1048576,"<="&O2,Transações!$B$2:$B$1048576,"Saída") -> 0 | P5: =SUMIFS(Transações!$D$2:$D$1048576,Transações!$A$2:$A$1048576,">="&P1,Transações!$A$2:$A$1048576,"<="&P2,Transações!$B$2:$B$1048576,"Saída") -> 0 | Q5: =SUMIFS(Transações!$D$2:$D$1048576,Transações!$A$2:$A$1048576,">="&Q1,Transações!$A$2:$A$1048576,"<="&Q2,Transações!$B$2:$B$1048576,"Saída") -> 0 | R5: =SUMIFS(Transações!$D$2:$D$1048576,Transações!$A$2:$A$1048576,">="&R1,Transações!$A$2:$A$1048576,"<="&R2,Transações!$B$2:$B$1048576,"Saída") -> 0 | S5: =SUMIFS(Transações!$D$2:$D$1048576,Transações!$A$2:$A$1048576,">="&S1,Transações!$A$2:$A$1048576,"<="&S2,Transações!$B$2:$B$1048576,"Saída") -> 0 | T5: =SUMIFS(Transações!$D$2:$D$1048576,Transações!$A$2:$A$1048576,">="&T1,Transações!$A$2:$A$1048576,"<="&T2,Transações!$B$2:$B$1048576,"Saída") -> 0 | U5: =SUMIFS(Transações!$D$2:$D$1048576,Transações!$A$2:$A$1048576,">="&U1,Transações!$A$2:$A$1048576,"<="&U2,Transações!$B$2:$B$1048576,"Saída") -> 0 | V5: =SUMIFS(Transações!$D$2:$D$1048576,Transações!$A$2:$A$1048576,">="&V1,Transações!$A$2:$A$1048576,"<="&V2,Transações!$B$2:$B$1048576,"Saída") -> 0
A6: Viagem | B6: =IF(SUMIFS(Transações!D:D,Transações!A:A,">="&'Graph Data'!$E$2,Transações!A:A,"<="&'Graph Data'!$E$3,Transações!C:C,'Graph Data'!A6)=0,NA(),SUMIFS(Transações!D:D,Transações!A:A,">="&'Graph Data'!$E$2,Transações!A:A,"<="&'Graph Data'!$E$3,Transações!C:C,'Graph Data'!A6)) ->  | C6: Abril | J6: Sobrou | K6: =K4-K5 -> 5249.25 | L6: =L4-L5 -> 899.5 | M6: =M4-M5 -> 0 | N6: 800 | O6: 0 | P6: 0 | Q6: 0 | R6: 0 | S6: 0 | T6: 0 | U6: 0 | V6: 0
A7: Lazer | B7: =IF(SUMIFS(Transações!D:D,Transações!A:A,">="&'Graph Data'!$E$2,Transações!A:A,"<="&'Graph Data'!$E$3,Transações!C:C,'Graph Data'!A7)=0,NA(),SUMIFS(Transações!D:D,Transações!A:A,">="&'Graph Data'!$E$2,Transações!A:A,"<="&'Graph Data'!$E$3,Transações!C:C,'Graph Data'!A7)) ->  | C7: Maio
A8: Transporte | B8: =IF(SUMIFS(Transações!D:D,Transações!A:A,">="&'Graph Data'!$E$2,Transações!A:A,"<="&'Graph Data'!$E$3,Transações!C:C,'Graph Data'!A8)=0,NA(),SUMIFS(Transações!D:D,Transações!A:A,">="&'Graph Data'!$E$2,Transações!A:A,"<="&'Graph Data'!$E$3,Transações!C:C,'Graph Data'!A8)) -> 450 | C8: Junho
B9: =IF(SUMIFS(Transações!D:D,Transações!A:A,">="&'Graph Data'!$E$2,Transações!A:A,"<="&'Graph Data'!$E$3,Transações!C:C,'Graph Data'!A9)=0,NA(),SUMIFS(Transações!D:D,Transações!A:A,">="&'Graph Data'!$E$2,Transações!A:A,"<="&'Graph Data'!$E$3,Transações!C:C,'Graph Data'!A9)) ->  | C9: Julho
B10: =IF(SUMIFS(Transações!D:D,Transações!A:A,">="&'Graph Data'!$E$2,Transações!A:A,"<="&'Graph Data'!$E$3,Transações!C:C,'Graph Data'!A10)=0,NA(),SUMIFS(Transações!D:D,Transações!A:A,">="&'Graph Data'!$E$2,Transações!A:A,"<="&'Graph Data'!$E$3,Transações!C:C,'Graph Data'!A10)) ->  | C10: Agosto
B11: =IF(SUMIFS(Transações!D:D,Transações!A:A,">="&'Graph Data'!$E$2,Transações!A:A,"<="&'Graph Data'!$E$3,Transações!C:C,'Graph Data'!A11)=0,NA(),SUMIFS(Transações!D:D,Transações!A:A,">="&'Graph Data'!$E$2,Transações!A:A,"<="&'Graph Data'!$E$3,Transações!C:C,'Graph Data'!A11)) ->  | C11: Setembro
B12: =IF(SUMIFS(Transações!D:D,Transações!A:A,">="&'Graph Data'!$E$2,Transações!A:A,"<="&'Graph Data'!$E$3,Transações!C:C,'Graph Data'!A12)=0,NA(),SUMIFS(Transações!D:D,Transações!A:A,">="&'Graph Data'!$E$2,Transações!A:A,"<="&'Graph Data'!$E$3,Transações!C:C,'Graph Data'!A12)) ->  | C12: Outubro
B13: =IF(SUMIFS(Transações!D:D,Transações!A:A,">="&'Graph Data'!$E$2,Transações!A:A,"<="&'Graph Data'!$E$3,Transações!C:C,'Graph Data'!A13)=0,NA(),SUMIFS(Transações!D:D,Transações!A:A,">="&'Graph Data'!$E$2,Transações!A:A,"<="&'Graph Data'!$E$3,Transações!C:C,'Graph Data'!A13)) ->  | C13: Novembro
B14: =IF(SUMIFS(Transações!D:D,Transações!A:A,">="&'Graph Data'!$E$2,Transações!A:A,"<="&'Graph Data'!$E$3,Transações!C:C,'Graph Data'!A14)=0,NA(),SUMIFS(Transações!D:D,Transações!A:A,">="&'Graph Data'!$E$2,Transações!A:A,"<="&'Graph Data'!$E$3,Transações!C:C,'Graph Data'!A14)) ->  | C14: Dezembro
B15: =IF(SUMIFS(Transações!D:D,Transações!A:A,">="&'Graph Data'!$E$2,Transações!A:A,"<="&'Graph Data'!$E$3,Transações!C:C,'Graph Data'!A15)=0,NA(),SUMIFS(Transações!D:D,Transações!A:A,">="&'Graph Data'!$E$2,Transações!A:A,"<="&'Graph Data'!$E$3,Transações!C:C,'Graph Data'!A15)) -> 
B16: =IF(SUMIFS(Transações!D:D,Transações!A:A,">="&'Graph Data'!$E$2,Transações!A:A,"<="&'Graph Data'!$E$3,Transações!C:C,'Graph Data'!A16)=0,NA(),SUMIFS(Transações!D:D,Transações!A:A,">="&'Graph Data'!$E$2,Transações!A:A,"<="&'Graph Data'!$E$3,Transações!C:C,'Graph Data'!A16)) -> 
B17: =IF(SUMIFS(Transações!D:D,Transações!A:A,">="&'Graph Data'!$E$2,Transações!A:A,"<="&'Graph Data'!$E$3,Transações!C:C,'Graph Data'!A17)=0,NA(),SUMIFS(Transações!D:D,Transações!A:A,">="&'Graph Data'!$E$2,Transações!A:A,"<="&'Graph Data'!$E$3,Transações!C:C,'Graph Data'!A17)) -> 
B18: =IF(SUMIFS(Transações!D:D,Transações!A:A,">="&'Graph Data'!$E$2,Transações!A:A,"<="&'Graph Data'!$E$3,Transações!C:C,'Graph Data'!A18)=0,NA(),SUMIFS(Transações!D:D,Transações!A:A,">="&'Graph Data'!$E$2,Transações!A:A,"<="&'Graph Data'!$E$3,Transações!C:C,'Graph Data'!A18)) -> 
B19: =IF(SUMIFS(Transações!D:D,Transações!A:A,">="&'Graph Data'!$E$2,Transações!A:A,"<="&'Graph Data'!$E$3,Transações!C:C,'Graph Data'!A19)=0,NA(),SUMIFS(Transações!D:D,Transações!A:A,">="&'Graph Data'!$E$2,Transações!A:A,"<="&'Graph Data'!$E$3,Transações!C:C,'Graph Data'!A19)) -> 
B20: =IF(SUMIFS(Transações!D:D,Transações!A:A,">="&'Graph Data'!$E$2,Transações!A:A,"<="&'Graph Data'!$E$3,Transações!C:C,'Graph Data'!A20)=0,NA(),SUMIFS(Transações!D:D,Transações!A:A,">="&'Graph Data'!$E$2,Transações!A:A,"<="&'Graph Data'!$E$3,Transações!C:C,'Graph Data'!A20)) -> 
B21: =IF(SUMIFS(Transações!D:D,Transações!A:A,">="&'Graph Data'!$E$2,Transações!A:A,"<="&'Graph Data'!$E$3,Transações!C:C,'Graph Data'!A21)=0,NA(),SUMIFS(Transações!D:D,Transações!A:A,">="&'Graph Data'!$E$2,Transações!A:A,"<="&'Graph Data'!$E$3,Transações!C:C,'Graph Data'!A21)) -> 
B22: =IF(SUMIFS(Transações!D:D,Transações!A:A,">="&'Graph Data'!$E$2,Transações!A:A,"<="&'Graph Data'!$E$3,Transações!C:C,'Graph Data'!A22)=0,NA(),SUMIFS(Transações!D:D,Transações!A:A,">="&'Graph Data'!$E$2,Transações!A:A,"<="&'Graph Data'!$E$3,Transações!C:C,'Graph Data'!A22)) -> 
B23: =IF(SUMIFS(Transações!D:D,Transações!A:A,">="&'Graph Data'!$E$2,Transações!A:A,"<="&'Graph Data'!$E$3,Transações!C:C,'Graph Data'!A23)=0,NA(),SUMIFS(Transações!D:D,Transações!A:A,">="&'Graph Data'!$E$2,Transações!A:A,"<="&'Graph Data'!$E$3,Transações!C:C,'Graph Data'!A23)) -> 
B24: =IF(SUMIFS(Transações!D:D,Transações!A:A,">="&'Graph Data'!$E$2,Transações!A:A,"<="&'Graph Data'!$E$3,Transações!C:C,'Graph Data'!A24)=0,NA(),SUMIFS(Transações!D:D,Transações!A:A,">="&'Graph Data'!$E$2,Transações!A:A,"<="&'Graph Data'!$E$3,Transações!C:C,'Graph Data'!A24)) -> 
B25: =IF(SUMIFS(Transações!D:D,Transações!A:A,">="&'Graph Data'!$E$2,Transações!A:A,"<="&'Graph Data'!$E$3,Transações!C:C,'Graph Data'!A25)=0,NA(),SUMIFS(Transações!D:D,Transações!A:A,">="&'Graph Data'!$E$2,Transações!A:A,"<="&'Graph Data'!$E$3,Transações!C:C,'Graph Data'!A25)) -> 
B26: =IF(SUMIFS(Transações!D:D,Transações!A:A,">="&'Graph Data'!$E$2,Transações!A:A,"<="&'Graph Data'!$E$3,Transações!C:C,'Graph Data'!A26)=0,NA(),SUMIFS(Transações!D:D,Transações!A:A,">="&'Graph Data'!$E$2,Transações!A:A,"<="&'Graph Data'!$E$3,Transações!C:C,'Graph Data'!A26)) -> 
B27: =IF(SUMIFS(Transações!D:D,Transações!A:A,">="&'Graph Data'!$E$2,Transações!A:A,"<="&'Graph Data'!$E$3,Transações!C:C,'Graph Data'!A27)=0,NA(),SUMIFS(Transações!D:D,Transações!A:A,">="&'Graph Data'!$E$2,Transações!A:A,"<="&'Graph Data'!$E$3,Transações!C:C,'Graph Data'!A27)) -> 
B28: =IF(SUMIFS(Transações!D:D,Transações!A:A,">="&'Graph Data'!$E$2,Transações!A:A,"<="&'Graph Data'!$E$3,Transações!C:C,'Graph Data'!A28)=0,NA(),SUMIFS(Transações!D:D,Transações!A:A,">="&'Graph Data'!$E$2,Transações!A:A,"<="&'Graph Data'!$E$3,Transações!C:C,'Graph Data'!A28)) -> 
B29: =IF(SUMIFS(Transações!D:D,Transações!A:A,">="&'Graph Data'!$E$2,Transações!A:A,"<="&'Graph Data'!$E$3,Transações!C:C,'Graph Data'!A29)=0,NA(),SUMIFS(Transações!D:D,Transações!A:A,">="&'Graph Data'!$E$2,Transações!A:A,"<="&'Graph Data'!$E$3,Transações!C:C,'Graph Data'!A29)) -> 
B30: =IF(SUMIFS(Transações!D:D,Transações!A:A,">="&'Graph Data'!$E$2,Transações!A:A,"<="&'Graph Data'!$E$3,Transações!C:C,'Graph Data'!A30)=0,NA(),SUMIFS(Transações!D:D,Transações!A:A,">="&'Graph Data'!$E$2,Transações!A:A,"<="&'Graph Data'!$E$3,Transações!C:C,'Graph Data'!A30)) -> 
B31: =IF(SUMIFS(Transações!D:D,Transações!A:A,">="&'Graph Data'!$E$2,Transações!A:A,"<="&'Graph Data'!$E$3,Transações!C:C,'Graph Data'!A31)=0,NA(),SUMIFS(Transações!D:D,Transações!A:A,">="&'Graph Data'!$E$2,Transações!A:A,"<="&'Graph Data'!$E$3,Transações!C:C,'Graph Data'!A31)) -> 
B32: =IF(SUMIFS(Transações!D:D,Transações!A:A,">="&'Graph Data'!$E$2,Transações!A:A,"<="&'Graph Data'!$E$3,Transações!C:C,'Graph Data'!A32)=0,NA(),SUMIFS(Transações!D:D,Transações!A:A,">="&'Graph Data'!$E$2,Transações!A:A,"<="&'Graph Data'!$E$3,Transações!C:C,'Graph Data'!A32)) -> 
B33: =IF(SUMIFS(Transações!D:D,Transações!A:A,">="&'Graph Data'!$E$2,Transações!A:A,"<="&'Graph Data'!$E$3,Transações!C:C,'Graph Data'!A33)=0,NA(),SUMIFS(Transações!D:D,Transações!A:A,">="&'Graph Data'!$E$2,Transações!A:A,"<="&'Graph Data'!$E$3,Transações!C:C,'Graph Data'!A33)) -> 
B34: =IF(SUMIFS(Transações!D:D,Transações!A:A,">="&'Graph Data'!$E$2,Transações!A:A,"<="&'Graph Data'!$E$3,Transações!C:C,'Graph Data'!A34)=0,NA(),SUMIFS(Transações!D:D,Transações!A:A,">="&'Graph Data'!$E$2,Transações!A:A,"<="&'Graph Data'!$E$3,Transações!C:C,'Graph Data'!A34)) -> 
B35: =IF(SUMIFS(Transações!D:D,Transações!A:A,">="&'Graph Data'!$E$2,Transações!A:A,"<="&'Graph Data'!$E$3,Transações!C:C,'Graph Data'!A35)=0,NA(),SUMIFS(Transações!D:D,Transações!A:A,">="&'Graph Data'!$E$2,Transações!A:A,"<="&'Graph Data'!$E$3,Transações!C:C,'Graph Data'!A35)) -> 
B36: =IF(SUMIFS(Transações!D:D,Transações!A:A,">="&'Graph Data'!$E$2,Transações!A:A,"<="&'Graph Data'!$E$3,Transações!C:C,'Graph Data'!A36)=0,NA(),SUMIFS(Transações!D:D,Transações!A:A,">="&'Graph Data'!$E$2,Transações!A:A,"<="&'Graph Data'!$E$3,Transações!C:C,'Graph Data'!A36)) -> 
B37: =IF(SUMIFS(Transações!D:D,Transações!A:A,">="&'Graph Data'!$E$2,Transações!A:A,"<="&'Graph Data'!$E$3,Transações!C:C,'Graph Data'!A37)=0,NA(),SUMIFS(Transações!D:D,Transações!A:A,">="&'Graph Data'!$E$2,Transações!A:A,"<="&'Graph Data'!$E$3,Transações!C:C,'Graph Data'!A37)) -> 
B38: =IF(SUMIFS(Transações!D:D,Transações!A:A,">="&'Graph Data'!$E$2,Transações!A:A,"<="&'Graph Data'!$E$3,Transações!C:C,'Graph Data'!A38)=0,NA(),SUMIFS(Transações!D:D,Transações!A:A,">="&'Graph Data'!$E$2,Transações!A:A,"<="&'Graph Data'!$E$3,Transações!C:C,'Graph Data'!A38)) -> 
B39: =IF(SUMIFS(Transações!D:D,Transações!A:A,">="&'Graph Data'!$E$2,Transações!A:A,"<="&'Graph Data'!$E$3,Transações!C:C,'Graph Data'!A39)=0,NA(),SUMIFS(Transações!D:D,Transações!A:A,">="&'Graph Data'!$E$2,Transações!A:A,"<="&'Graph Data'!$E$3,Transações!C:C,'Graph Data'!A39)) -> 
B40: =IF(SUMIFS(Transações!D:D,Transações!A:A,">="&'Graph Data'!$E$2,Transações!A:A,"<="&'Graph Data'!$E$3,Transações!C:C,'Graph Data'!A40)=0,NA(),SUMIFS(Transações!D:D,Transações!A:A,">="&'Graph Data'!$E$2,Transações!A:A,"<="&'Graph Data'!$E$3,Transações!C:C,'Graph Data'!A40)) -> 
B41: =IF(SUMIFS(Transações!D:D,Transações!A:A,">="&'Graph Data'!$E$2,Transações!A:A,"<="&'Graph Data'!$E$3,Transações!C:C,'Graph Data'!A41)=0,NA(),SUMIFS(Transações!D:D,Transações!A:A,">="&'Graph Data'!$E$2,Transações!A:A,"<="&'Graph Data'!$E$3,Transações!C:C,'Graph Data'!A41)) -> 
B42: =IF(SUMIFS(Transações!D:D,Transações!A:A,">="&'Graph Data'!$E$2,Transações!A:A,"<="&'Graph Data'!$E$3,Transações!C:C,'Graph Data'!A42)=0,NA(),SUMIFS(Transações!D:D,Transações!A:A,">="&'Graph Data'!$E$2,Transações!A:A,"<="&'Graph Data'!$E$3,Transações!C:C,'Graph Data'!A42)) -> 
B43: =IF(SUMIFS(Transações!D:D,Transações!A:A,">="&'Graph Data'!$E$2,Transações!A:A,"<="&'Graph Data'!$E$3,Transações!C:C,'Graph Data'!A43)=0,NA(),SUMIFS(Transações!D:D,Transações!A:A,">="&'Graph Data'!$E$2,Transações!A:A,"<="&'Graph Data'!$E$3,Transações!C:C,'Graph Data'!A43)) -> 
B44: =IF(SUMIFS(Transações!D:D,Transações!A:A,">="&'Graph Data'!$E$2,Transações!A:A,"<="&'Graph Data'!$E$3,Transações!C:C,'Graph Data'!A44)=0,NA(),SUMIFS(Transações!D:D,Transações!A:A,">="&'Graph Data'!$E$2,Transações!A:A,"<="&'Graph Data'!$E$3,Transações!C:C,'Graph Data'!A44)) -> 
B45: =IF(SUMIFS(Transações!D:D,Transações!A:A,">="&'Graph Data'!$E$2,Transações!A:A,"<="&'Graph Data'!$E$3,Transações!C:C,'Graph Data'!A45)=0,NA(),SUMIFS(Transações!D:D,Transações!A:A,">="&'Graph Data'!$E$2,Transações!A:A,"<="&'Graph Data'!$E$3,Transações!C:C,'Graph Data'!A45)) -> 
B46: =IF(SUMIFS(Transações!D:D,Transações!A:A,">="&'Graph Data'!$E$2,Transações!A:A,"<="&'Graph Data'!$E$3,Transações!C:C,'Graph Data'!A46)=0,NA(),SUMIFS(Transações!D:D,Transações!A:A,">="&'Graph Data'!$E$2,Transações!A:A,"<="&'Graph Data'!$E$3,Transações!C:C,'Graph Data'!A46)) -> 
B47: =IF(SUMIFS(Transações!D:D,Transações!A:A,">="&'Graph Data'!$E$2,Transações!A:A,"<="&'Graph Data'!$E$3,Transações!C:C,'Graph Data'!A47)=0,NA(),SUMIFS(Transações!D:D,Transações!A:A,">="&'Graph Data'!$E$2,Transações!A:A,"<="&'Graph Data'!$E$3,Transações!C:C,'Graph Data'!A47)) -> 
B48: =IF(SUMIFS(Transações!D:D,Transações!A:A,">="&'Graph Data'!$E$2,Transações!A:A,"<="&'Graph Data'!$E$3,Transações!C:C,'Graph Data'!A48)=0,NA(),SUMIFS(Transações!D:D,Transações!A:A,">="&'Graph Data'!$E$2,Transações!A:A,"<="&'Graph Data'!$E$3,Transações!C:C,'Graph Data'!A48)) -> 
B49: =IF(SUMIFS(Transações!D:D,Transações!A:A,">="&'Graph Data'!$E$2,Transações!A:A,"<="&'Graph Data'!$E$3,Transações!C:C,'Graph Data'!A49)=0,NA(),SUMIFS(Transações!D:D,Transações!A:A,">="&'Graph Data'!$E$2,Transações!A:A,"<="&'Graph Data'!$E$3,Transações!C:C,'Graph Data'!A49)) -> 
B50: =IF(SUMIFS(Transações!D:D,Transações!A:A,">="&'Graph Data'!$E$2,Transações!A:A,"<="&'Graph Data'!$E$3,Transações!C:C,'Graph Data'!A50)=0,NA(),SUMIFS(Transações!D:D,Transações!A:A,">="&'Graph Data'!$E$2,Transações!A:A,"<="&'Graph Data'!$E$3,Transações!C:C,'Graph Data'!A50)) -> 
B51: =IF(SUMIFS(Transações!D:D,Transações!A:A,">="&'Graph Data'!$E$2,Transações!A:A,"<="&'Graph Data'!$E$3,Transações!C:C,'Graph Data'!A51)=0,NA(),SUMIFS(Transações!D:D,Transações!A:A,">="&'Graph Data'!$E$2,Transações!A:A,"<="&'Graph Data'!$E$3,Transações!C:C,'Graph Data'!A51)) -> 
B52: =IF(SUMIFS(Transações!D:D,Transações!A:A,">="&'Graph Data'!$E$2,Transações!A:A,"<="&'Graph Data'!$E$3,Transações!C:C,'Graph Data'!A52)=0,NA(),SUMIFS(Transações!D:D,Transações!A:A,">="&'Graph Data'!$E$2,Transações!A:A,"<="&'Graph Data'!$E$3,Transações!C:C,'Graph Data'!A52)) -> 
B53: =IF(SUMIFS(Transações!D:D,Transações!A:A,">="&'Graph Data'!$E$2,Transações!A:A,"<="&'Graph Data'!$E$3,Transações!C:C,'Graph Data'!A53)=0,NA(),SUMIFS(Transações!D:D,Transações!A:A,">="&'Graph Data'!$E$2,Transações!A:A,"<="&'Graph Data'!$E$3,Transações!C:C,'Graph Data'!A53)) -> 
B54: =IF(SUMIFS(Transações!D:D,Transações!A:A,">="&'Graph Data'!$E$2,Transações!A:A,"<="&'Graph Data'!$E$3,Transações!C:C,'Graph Data'!A54)=0,NA(),SUMIFS(Transações!D:D,Transações!A:A,">="&'Graph Data'!$E$2,Transações!A:A,"<="&'Graph Data'!$E$3,Transações!C:C,'Graph Data'!A54)) -> 
B55: =IF(SUMIFS(Transações!D:D,Transações!A:A,">="&'Graph Data'!$E$2,Transações!A:A,"<="&'Graph Data'!$E$3,Transações!C:C,'Graph Data'!A55)=0,NA(),SUMIFS(Transações!D:D,Transações!A:A,">="&'Graph Data'!$E$2,Transações!A:A,"<="&'Graph Data'!$E$3,Transações!C:C,'Graph Data'!A55)) -> 
B56: =IF(SUMIFS(Transações!D:D,Transações!A:A,">="&'Graph Data'!$E$2,Transações!A:A,"<="&'Graph Data'!$E$3,Transações!C:C,'Graph Data'!A56)=0,NA(),SUMIFS(Transações!D:D,Transações!A:A,">="&'Graph Data'!$E$2,Transações!A:A,"<="&'Graph Data'!$E$3,Transações!C:C,'Graph Data'!A56)) -> 
B57: =IF(SUMIFS(Transações!D:D,Transações!A:A,">="&'Graph Data'!$E$2,Transações!A:A,"<="&'Graph Data'!$E$3,Transações!C:C,'Graph Data'!A57)=0,NA(),SUMIFS(Transações!D:D,Transações!A:A,">="&'Graph Data'!$E$2,Transações!A:A,"<="&'Graph Data'!$E$3,Transações!C:C,'Graph Data'!A57)) -> 
B58: =IF(SUMIFS(Transações!D:D,Transações!A:A,">="&'Graph Data'!$E$2,Transações!A:A,"<="&'Graph Data'!$E$3,Transações!C:C,'Graph Data'!A58)=0,NA(),SUMIFS(Transações!D:D,Transações!A:A,">="&'Graph Data'!$E$2,Transações!A:A,"<="&'Graph Data'!$E$3,Transações!C:C,'Graph Data'!A58)) -> 
B59: =IF(SUMIFS(Transações!D:D,Transações!A:A,">="&'Graph Data'!$E$2,Transações!A:A,"<="&'Graph Data'!$E$3,Transações!C:C,'Graph Data'!A59)=0,NA(),SUMIFS(Transações!D:D,Transações!A:A,">="&'Graph Data'!$E$2,Transações!A:A,"<="&'Graph Data'!$E$3,Transações!C:C,'Graph Data'!A59)) -> 
B60: =IF(SUMIFS(Transações!D:D,Transações!A:A,">="&'Graph Data'!$E$2,Transações!A:A,"<="&'Graph Data'!$E$3,Transações!C:C,'Graph Data'!A60)=0,NA(),SUMIFS(Transações!D:D,Transações!A:A,">="&'Graph Data'!$E$2,Transações!A:A,"<="&'Graph Data'!$E$3,Transações!C:C,'Graph Data'!A60)) -> 
B61: =IF(SUMIFS(Transações!D:D,Transações!A:A,">="&'Graph Data'!$E$2,Transações!A:A,"<="&'Graph Data'!$E$3,Transações!C:C,'Graph Data'!A61)=0,NA(),SUMIFS(Transações!D:D,Transações!A:A,">="&'Graph Data'!$E$2,Transações!A:A,"<="&'Graph Data'!$E$3,Transações!C:C,'Graph Data'!A61)) -> 
B62: =IF(SUMIFS(Transações!D:D,Transações!A:A,">="&'Graph Data'!$E$2,Transações!A:A,"<="&'Graph Data'!$E$3,Transações!C:C,'Graph Data'!A62)=0,NA(),SUMIFS(Transações!D:D,Transações!A:A,">="&'Graph Data'!$E$2,Transações!A:A,"<="&'Graph Data'!$E$3,Transações!C:C,'Graph Data'!A62)) -> 
B63: =IF(SUMIFS(Transações!D:D,Transações!A:A,">="&'Graph Data'!$E$2,Transações!A:A,"<="&'Graph Data'!$E$3,Transações!C:C,'Graph Data'!A63)=0,NA(),SUMIFS(Transações!D:D,Transações!A:A,">="&'Graph Data'!$E$2,Transações!A:A,"<="&'Graph Data'!$E$3,Transações!C:C,'Graph Data'!A63)) -> 
B64: =IF(SUMIFS(Transações!D:D,Transações!A:A,">="&'Graph Data'!$E$2,Transações!A:A,"<="&'Graph Data'!$E$3,Transações!C:C,'Graph Data'!A64)=0,NA(),SUMIFS(Transações!D:D,Transações!A:A,">="&'Graph Data'!$E$2,Transações!A:A,"<="&'Graph Data'!$E$3,Transações!C:C,'Graph Data'!A64)) -> 
B65: =IF(SUMIFS(Transações!D:D,Transações!A:A,">="&'Graph Data'!$E$2,Transações!A:A,"<="&'Graph Data'!$E$3,Transações!C:C,'Graph Data'!A65)=0,NA(),SUMIFS(Transações!D:D,Transações!A:A,">="&'Graph Data'!$E$2,Transações!A:A,"<="&'Graph Data'!$E$3,Transações!C:C,'Graph Data'!A65)) -> 
B66: =IF(SUMIFS(Transações!D:D,Transações!A:A,">="&'Graph Data'!$E$2,Transações!A:A,"<="&'Graph Data'!$E$3,Transações!C:C,'Graph Data'!A66)=0,NA(),SUMIFS(Transações!D:D,Transações!A:A,">="&'Graph Data'!$E$2,Transações!A:A,"<="&'Graph Data'!$E$3,Transações!C:C,'Graph Data'!A66)) -> 
B67: =IF(SUMIFS(Transações!D:D,Transações!A:A,">="&'Graph Data'!$E$2,Transações!A:A,"<="&'Graph Data'!$E$3,Transações!C:C,'Graph Data'!A67)=0,NA(),SUMIFS(Transações!D:D,Transações!A:A,">="&'Graph Data'!$E$2,Transações!A:A,"<="&'Graph Data'!$E$3,Transações!C:C,'Graph Data'!A67)) -> 
B68: =IF(SUMIFS(Transações!D:D,Transações!A:A,">="&'Graph Data'!$E$2,Transações!A:A,"<="&'Graph Data'!$E$3,Transações!C:C,'Graph Data'!A68)=0,NA(),SUMIFS(Transações!D:D,Transações!A:A,">="&'Graph Data'!$E$2,Transações!A:A,"<="&'Graph Data'!$E$3,Transações!C:C,'Graph Data'!A68)) -> 
B69: =IF(SUMIFS(Transações!D:D,Transações!A:A,">="&'Graph Data'!$E$2,Transações!A:A,"<="&'Graph Data'!$E$3,Transações!C:C,'Graph Data'!A69)=0,NA(),SUMIFS(Transações!D:D,Transações!A:A,">="&'Graph Data'!$E$2,Transações!A:A,"<="&'Graph Data'!$E$3,Transações!C:C,'Graph Data'!A69)) -> 
B70: =IF(SUMIFS(Transações!D:D,Transações!A:A,">="&'Graph Data'!$E$2,Transações!A:A,"<="&'Graph Data'!$E$3,Transações!C:C,'Graph Data'!A70)=0,NA(),SUMIFS(Transações!D:D,Transações!A:A,">="&'Graph Data'!$E$2,Transações!A:A,"<="&'Graph Data'!$E$3,Transações!C:C,'Graph Data'!A70)) -> 
B71: =IF(SUMIFS(Transações!D:D,Transações!A:A,">="&'Graph Data'!$E$2,Transações!A:A,"<="&'Graph Data'!$E$3,Transações!C:C,'Graph Data'!A71)=0,NA(),SUMIFS(Transações!D:D,Transações!A:A,">="&'Graph Data'!$E$2,Transações!A:A,"<="&'Graph Data'!$E$3,Transações!C:C,'Graph Data'!A71)) -> 
B72: =IF(SUMIFS(Transações!D:D,Transações!A:A,">="&'Graph Data'!$E$2,Transações!A:A,"<="&'Graph Data'!$E$3,Transações!C:C,'Graph Data'!A72)=0,NA(),SUMIFS(Transações!D:D,Transações!A:A,">="&'Graph Data'!$E$2,Transações!A:A,"<="&'Graph Data'!$E$3,Transações!C:C,'Graph Data'!A72)) -> 
B73: =IF(SUMIFS(Transações!D:D,Transações!A:A,">="&'Graph Data'!$E$2,Transações!A:A,"<="&'Graph Data'!$E$3,Transações!C:C,'Graph Data'!A73)=0,NA(),SUMIFS(Transações!D:D,Transações!A:A,">="&'Graph Data'!$E$2,Transações!A:A,"<="&'Graph Data'!$E$3,Transações!C:C,'Graph Data'!A73)) -> 
B74: =IF(SUMIFS(Transações!D:D,Transações!A:A,">="&'Graph Data'!$E$2,Transações!A:A,"<="&'Graph Data'!$E$3,Transações!C:C,'Graph Data'!A74)=0,NA(),SUMIFS(Transações!D:D,Transações!A:A,">="&'Graph Data'!$E$2,Transações!A:A,"<="&'Graph Data'!$E$3,Transações!C:C,'Graph Data'!A74)) -> 
B75: =IF(SUMIFS(Transações!D:D,Transações!A:A,">="&'Graph Data'!$E$2,Transações!A:A,"<="&'Graph Data'!$E$3,Transações!C:C,'Graph Data'!A75)=0,NA(),SUMIFS(Transações!D:D,Transações!A:A,">="&'Graph Data'!$E$2,Transações!A:A,"<="&'Graph Data'!$E$3,Transações!C:C,'Graph Data'!A75)) -> 
B76: =IF(SUMIFS(Transações!D:D,Transações!A:A,">="&'Graph Data'!$E$2,Transações!A:A,"<="&'Graph Data'!$E$3,Transações!C:C,'Graph Data'!A76)=0,NA(),SUMIFS(Transações!D:D,Transações!A:A,">="&'Graph Data'!$E$2,Transações!A:A,"<="&'Graph Data'!$E$3,Transações!C:C,'Graph Data'!A76)) -> 
B77: =IF(SUMIFS(Transações!D:D,Transações!A:A,">="&'Graph Data'!$E$2,Transações!A:A,"<="&'Graph Data'!$E$3,Transações!C:C,'Graph Data'!A77)=0,NA(),SUMIFS(Transações!D:D,Transações!A:A,">="&'Graph Data'!$E$2,Transações!A:A,"<="&'Graph Data'!$E$3,Transações!C:C,'Graph Data'!A77)) -> 
B78: =IF(SUMIFS(Transações!D:D,Transações!A:A,">="&'Graph Data'!$E$2,Transações!A:A,"<="&'Graph Data'!$E$3,Transações!C:C,'Graph Data'!A78)=0,NA(),SUMIFS(Transações!D:D,Transações!A:A,">="&'Graph Data'!$E$2,Transações!A:A,"<="&'Graph Data'!$E$3,Transações!C:C,'Graph Data'!A78)) -> 
B79: =IF(SUMIFS(Transações!D:D,Transações!A:A,">="&'Graph Data'!$E$2,Transações!A:A,"<="&'Graph Data'!$E$3,Transações!C:C,'Graph Data'!A79)=0,NA(),SUMIFS(Transações!D:D,Transações!A:A,">="&'Graph Data'!$E$2,Transações!A:A,"<="&'Graph Data'!$E$3,Transações!C:C,'Graph Data'!A79)) -> 
B80: =IF(SUMIFS(Transações!D:D,Transações!A:A,">="&'Graph Data'!$E$2,Transações!A:A,"<="&'Graph Data'!$E$3,Transações!C:C,'Graph Data'!A80)=0,NA(),SUMIFS(Transações!D:D,Transações!A:A,">="&'Graph Data'!$E$2,Transações!A:A,"<="&'Graph Data'!$E$3,Transações!C:C,'Graph Data'!A80)) -> 
B81: =IF(SUMIFS(Transações!D:D,Transações!A:A,">="&'Graph Data'!$E$2,Transações!A:A,"<="&'Graph Data'!$E$3,Transações!C:C,'Graph Data'!A81)=0,NA(),SUMIFS(Transações!D:D,Transações!A:A,">="&'Graph Data'!$E$2,Transações!A:A,"<="&'Graph Data'!$E$3,Transações!C:C,'Graph Data'!A81)) -> 
B82: =IF(SUMIFS(Transações!D:D,Transações!A:A,">="&'Graph Data'!$E$2,Transações!A:A,"<="&'Graph Data'!$E$3,Transações!C:C,'Graph Data'!A82)=0,NA(),SUMIFS(Transações!D:D,Transações!A:A,">="&'Graph Data'!$E$2,Transações!A:A,"<="&'Graph Data'!$E$3,Transações!C:C,'Graph Data'!A82)) -> 
B83: =IF(SUMIFS(Transações!D:D,Transações!A:A,">="&'Graph Data'!$E$2,Transações!A:A,"<="&'Graph Data'!$E$3,Transações!C:C,'Graph Data'!A83)=0,NA(),SUMIFS(Transações!D:D,Transações!A:A,">="&'Graph Data'!$E$2,Transações!A:A,"<="&'Graph Data'!$E$3,Transações!C:C,'Graph Data'!A83)) -> 
B84: =IF(SUMIFS(Transações!D:D,Transações!A:A,">="&'Graph Data'!$E$2,Transações!A:A,"<="&'Graph Data'!$E$3,Transações!C:C,'Graph Data'!A84)=0,NA(),SUMIFS(Transações!D:D,Transações!A:A,">="&'Graph Data'!$E$2,Transações!A:A,"<="&'Graph Data'!$E$3,Transações!C:C,'Graph Data'!A84)) -> 
B85: =IF(SUMIFS(Transações!D:D,Transações!A:A,">="&'Graph Data'!$E$2,Transações!A:A,"<="&'Graph Data'!$E$3,Transações!C:C,'Graph Data'!A85)=0,NA(),SUMIFS(Transações!D:D,Transações!A:A,">="&'Graph Data'!$E$2,Transações!A:A,"<="&'Graph Data'!$E$3,Transações!C:C,'Graph Data'!A85)) -> 
B86: =IF(SUMIFS(Transações!D:D,Transações!A:A,">="&'Graph Data'!$E$2,Transações!A:A,"<="&'Graph Data'!$E$3,Transações!C:C,'Graph Data'!A86)=0,NA(),SUMIFS(Transações!D:D,Transações!A:A,">="&'Graph Data'!$E$2,Transações!A:A,"<="&'Graph Data'!$E$3,Transações!C:C,'Graph Data'!A86)) -> 
B87: =IF(SUMIFS(Transações!D:D,Transações!A:A,">="&'Graph Data'!$E$2,Transações!A:A,"<="&'Graph Data'!$E$3,Transações!C:C,'Graph Data'!A87)=0,NA(),SUMIFS(Transações!D:D,Transações!A:A,">="&'Graph Data'!$E$2,Transações!A:A,"<="&'Graph Data'!$E$3,Transações!C:C,'Graph Data'!A87)) -> 
B88: =IF(SUMIFS(Transações!D:D,Transações!A:A,">="&'Graph Data'!$E$2,Transações!A:A,"<="&'Graph Data'!$E$3,Transações!C:C,'Graph Data'!A88)=0,NA(),SUMIFS(Transações!D:D,Transações!A:A,">="&'Graph Data'!$E$2,Transações!A:A,"<="&'Graph Data'!$E$3,Transações!C:C,'Graph Data'!A88)) -> 
B89: =IF(SUMIFS(Transações!D:D,Transações!A:A,">="&'Graph Data'!$E$2,Transações!A:A,"<="&'Graph Data'!$E$3,Transações!C:C,'Graph Data'!A89)=0,NA(),SUMIFS(Transações!D:D,Transações!A:A,">="&'Graph Data'!$E$2,Transações!A:A,"<="&'Graph Data'!$E$3,Transações!C:C,'Graph Data'!A89)) -> 
B90: =IF(SUMIFS(Transações!D:D,Transações!A:A,">="&'Graph Data'!$E$2,Transações!A:A,"<="&'Graph Data'!$E$3,Transações!C:C,'Graph Data'!A90)=0,NA(),SUMIFS(Transações!D:D,Transações!A:A,">="&'Graph Data'!$E$2,Transações!A:A,"<="&'Graph Data'!$E$3,Transações!C:C,'Graph Data'!A90)) -> 
B91: =IF(SUMIFS(Transações!D:D,Transações!A:A,">="&'Graph Data'!$E$2,Transações!A:A,"<="&'Graph Data'!$E$3,Transações!C:C,'Graph Data'!A91)=0,NA(),SUMIFS(Transações!D:D,Transações!A:A,">="&'Graph Data'!$E$2,Transações!A:A,"<="&'Graph Data'!$E$3,Transações!C:C,'Graph Data'!A91)) -> 
B92: =IF(SUMIFS(Transações!D:D,Transações!A:A,">="&'Graph Data'!$E$2,Transações!A:A,"<="&'Graph Data'!$E$3,Transações!C:C,'Graph Data'!A92)=0,NA(),SUMIFS(Transações!D:D,Transações!A:A,">="&'Graph Data'!$E$2,Transações!A:A,"<="&'Graph Data'!$E$3,Transações!C:C,'Graph Data'!A92)) -> 
B93: =IF(SUMIFS(Transações!D:D,Transações!A:A,">="&'Graph Data'!$E$2,Transações!A:A,"<="&'Graph Data'!$E$3,Transações!C:C,'Graph Data'!A93)=0,NA(),SUMIFS(Transações!D:D,Transações!A:A,">="&'Graph Data'!$E$2,Transações!A:A,"<="&'Graph Data'!$E$3,Transações!C:C,'Graph Data'!A93)) -> 
B94: =IF(SUMIFS(Transações!D:D,Transações!A:A,">="&'Graph Data'!$E$2,Transações!A:A,"<="&'Graph Data'!$E$3,Transações!C:C,'Graph Data'!A94)=0,NA(),SUMIFS(Transações!D:D,Transações!A:A,">="&'Graph Data'!$E$2,Transações!A:A,"<="&'Graph Data'!$E$3,Transações!C:C,'Graph Data'!A94)) -> 
B95: =IF(SUMIFS(Transações!D:D,Transações!A:A,">="&'Graph Data'!$E$2,Transações!A:A,"<="&'Graph Data'!$E$3,Transações!C:C,'Graph Data'!A95)=0,NA(),SUMIFS(Transações!D:D,Transações!A:A,">="&'Graph Data'!$E$2,Transações!A:A,"<="&'Graph Data'!$E$3,Transações!C:C,'Graph Data'!A95)) -> 
B96: =IF(SUMIFS(Transações!D:D,Transações!A:A,">="&'Graph Data'!$E$2,Transações!A:A,"<="&'Graph Data'!$E$3,Transações!C:C,'Graph Data'!A96)=0,NA(),SUMIFS(Transações!D:D,Transações!A:A,">="&'Graph Data'!$E$2,Transações!A:A,"<="&'Graph Data'!$E$3,Transações!C:C,'Graph Data'!A96)) -> 
B97: =IF(SUMIFS(Transações!D:D,Transações!A:A,">="&'Graph Data'!$E$2,Transações!A:A,"<="&'Graph Data'!$E$3,Transações!C:C,'Graph Data'!A97)=0,NA(),SUMIFS(Transações!D:D,Transações!A:A,">="&'Graph Data'!$E$2,Transações!A:A,"<="&'Graph Data'!$E$3,Transações!C:C,'Graph Data'!A97)) -> 
B98: =IF(SUMIFS(Transações!D:D,Transações!A:A,">="&'Graph Data'!$E$2,Transações!A:A,"<="&'Graph Data'!$E$3,Transações!C:C,'Graph Data'!A98)=0,NA(),SUMIFS(Transações!D:D,Transações!A:A,">="&'Graph Data'!$E$2,Transações!A:A,"<="&'Graph Data'!$E$3,Transações!C:C,'Graph Data'!A98)) -> 
B99: =IF(SUMIFS(Transações!D:D,Transações!A:A,">="&'Graph Data'!$E$2,Transações!A:A,"<="&'Graph Data'!$E$3,Transações!C:C,'Graph Data'!A99)=0,NA(),SUMIFS(Transações!D:D,Transações!A:A,">="&'Graph Data'!$E$2,Transações!A:A,"<="&'Graph Data'!$E$3,Transações!C:C,'Graph Data'!A99)) -> 
B100: =IF(SUMIFS(Transações!D:D,Transações!A:A,">="&'Graph Data'!$E$2,Transações!A:A,"<="&'Graph Data'!$E$3,Transações!C:C,'Graph Data'!A100)=0,NA(),SUMIFS(Transações!D:D,Transações!A:A,">="&'Graph Data'!$E$2,Transações!A:A,"<="&'Graph Data'!$E$3,Transações!C:C,'Graph Data'!A100)) -> 
B101: =IF(SUMIFS(Transações!D:D,Transações!A:A,">="&'Graph Data'!$E$2,Transações!A:A,"<="&'Graph Data'!$E$3,Transações!C:C,'Graph Data'!A101)=0,NA(),SUMIFS(Transações!D:D,Transações!A:A,">="&'Graph Data'!$E$2,Transações!A:A,"<="&'Graph Data'!$E$3,Transações!C:C,'Graph Data'!A101)) -> 
B102: =IF(SUMIFS(Transações!D:D,Transações!A:A,">="&'Graph Data'!$E$2,Transações!A:A,"<="&'Graph Data'!$E$3,Transações!C:C,'Graph Data'!A102)=0,NA(),SUMIFS(Transações!D:D,Transações!A:A,">="&'Graph Data'!$E$2,Transações!A:A,"<="&'Graph Data'!$E$3,Transações!C:C,'Graph Data'!A102)) -> 
B103: =IF(SUMIFS(Transações!D:D,Transações!A:A,">="&'Graph Data'!$E$2,Transações!A:A,"<="&'Graph Data'!$E$3,Transações!C:C,'Graph Data'!A103)=0,NA(),SUMIFS(Transações!D:D,Transações!A:A,">="&'Graph Data'!$E$2,Transações!A:A,"<="&'Graph Data'!$E$3,Transações!C:C,'Graph Data'!A103)) -> 
B104: =IF(SUMIFS(Transações!D:D,Transações!A:A,">="&'Graph Data'!$E$2,Transações!A:A,"<="&'Graph Data'!$E$3,Transações!C:C,'Graph Data'!A104)=0,NA(),SUMIFS(Transações!D:D,Transações!A:A,">="&'Graph Data'!$E$2,Transações!A:A,"<="&'Graph Data'!$E$3,Transações!C:C,'Graph Data'!A104)) -> 
B105: =IF(SUMIFS(Transações!D:D,Transações!A:A,">="&'Graph Data'!$E$2,Transações!A:A,"<="&'Graph Data'!$E$3,Transações!C:C,'Graph Data'!A105)=0,NA(),SUMIFS(Transações!D:D,Transações!A:A,">="&'Graph Data'!$E$2,Transações!A:A,"<="&'Graph Data'!$E$3,Transações!C:C,'Graph Data'!A105)) -> 
B106: =IF(SUMIFS(Transações!D:D,Transações!A:A,">="&'Graph Data'!$E$2,Transações!A:A,"<="&'Graph Data'!$E$3,Transações!C:C,'Graph Data'!A106)=0,NA(),SUMIFS(Transações!D:D,Transações!A:A,">="&'Graph Data'!$E$2,Transações!A:A,"<="&'Graph Data'!$E$3,Transações!C:C,'Graph Data'!A106)) -> 
B107: =IF(SUMIFS(Transações!D:D,Transações!A:A,">="&'Graph Data'!$E$2,Transações!A:A,"<="&'Graph Data'!$E$3,Transações!C:C,'Graph Data'!A107)=0,NA(),SUMIFS(Transações!D:D,Transações!A:A,">="&'Graph Data'!$E$2,Transações!A:A,"<="&'Graph Data'!$E$3,Transações!C:C,'Graph Data'!A107)) -> 
B108: =IF(SUMIFS(Transações!D:D,Transações!A:A,">="&'Graph Data'!$E$2,Transações!A:A,"<="&'Graph Data'!$E$3,Transações!C:C,'Graph Data'!A108)=0,NA(),SUMIFS(Transações!D:D,Transações!A:A,">="&'Graph Data'!$E$2,Transações!A:A,"<="&'Graph Data'!$E$3,Transações!C:C,'Graph Data'!A108)) -> 
B109: =IF(SUMIFS(Transações!D:D,Transações!A:A,">="&'Graph Data'!$E$2,Transações!A:A,"<="&'Graph Data'!$E$3,Transações!C:C,'Graph Data'!A109)=0,NA(),SUMIFS(Transações!D:D,Transações!A:A,">="&'Graph Data'!$E$2,Transações!A:A,"<="&'Graph Data'!$E$3,Transações!C:C,'Graph Data'!A109)) -> 
B110: =IF(SUMIFS(Transações!D:D,Transações!A:A,">="&'Graph Data'!$E$2,Transações!A:A,"<="&'Graph Data'!$E$3,Transações!C:C,'Graph Data'!A110)=0,NA(),SUMIFS(Transações!D:D,Transações!A:A,">="&'Graph Data'!$E$2,Transações!A:A,"<="&'Graph Data'!$E$3,Transações!C:C,'Graph Data'!A110)) -> 
B111: =IF(SUMIFS(Transações!D:D,Transações!A:A,">="&'Graph Data'!$E$2,Transações!A:A,"<="&'Graph Data'!$E$3,Transações!C:C,'Graph Data'!A111)=0,NA(),SUMIFS(Transações!D:D,Transações!A:A,">="&'Graph Data'!$E$2,Transações!A:A,"<="&'Graph Data'!$E$3,Transações!C:C,'Graph Data'!A111)) -> 
B112: =IF(SUMIFS(Transações!D:D,Transações!A:A,">="&'Graph Data'!$E$2,Transações!A:A,"<="&'Graph Data'!$E$3,Transações!C:C,'Graph Data'!A112)=0,NA(),SUMIFS(Transações!D:D,Transações!A:A,">="&'Graph Data'!$E$2,Transações!A:A,"<="&'Graph Data'!$E$3,Transações!C:C,'Graph Data'!A112)) -> 
B113: =IF(SUMIFS(Transações!D:D,Transações!A:A,">="&'Graph Data'!$E$2,Transações!A:A,"<="&'Graph Data'!$E$3,Transações!C:C,'Graph Data'!A113)=0,NA(),SUMIFS(Transações!D:D,Transações!A:A,">="&'Graph Data'!$E$2,Transações!A:A,"<="&'Graph Data'!$E$3,Transações!C:C,'Graph Data'!A113)) -> 
B114: =IF(SUMIFS(Transações!D:D,Transações!A:A,">="&'Graph Data'!$E$2,Transações!A:A,"<="&'Graph Data'!$E$3,Transações!C:C,'Graph Data'!A114)=0,NA(),SUMIFS(Transações!D:D,Transações!A:A,">="&'Graph Data'!$E$2,Transações!A:A,"<="&'Graph Data'!$E$3,Transações!C:C,'Graph Data'!A114)) -> 
B115: =IF(SUMIFS(Transações!D:D,Transações!A:A,">="&'Graph Data'!$E$2,Transações!A:A,"<="&'Graph Data'!$E$3,Transações!C:C,'Graph Data'!A115)=0,NA(),SUMIFS(Transações!D:D,Transações!A:A,">="&'Graph Data'!$E$2,Transações!A:A,"<="&'Graph Data'!$E$3,Transações!C:C,'Graph Data'!A115)) -> 
B116: =IF(SUMIFS(Transações!D:D,Transações!A:A,">="&'Graph Data'!$E$2,Transações!A:A,"<="&'Graph Data'!$E$3,Transações!C:C,'Graph Data'!A116)=0,NA(),SUMIFS(Transações!D:D,Transações!A:A,">="&'Graph Data'!$E$2,Transações!A:A,"<="&'Graph Data'!$E$3,Transações!C:C,'Graph Data'!A116)) -> 
B117: =IF(SUMIFS(Transações!D:D,Transações!A:A,">="&'Graph Data'!$E$2,Transações!A:A,"<="&'Graph Data'!$E$3,Transações!C:C,'Graph Data'!A117)=0,NA(),SUMIFS(Transações!D:D,Transações!A:A,">="&'Graph Data'!$E$2,Transações!A:A,"<="&'Graph Data'!$E$3,Transações!C:C,'Graph Data'!A117)) -> 
B118: =IF(SUMIFS(Transações!D:D,Transações!A:A,">="&'Graph Data'!$E$2,Transações!A:A,"<="&'Graph Data'!$E$3,Transações!C:C,'Graph Data'!A118)=0,NA(),SUMIFS(Transações!D:D,Transações!A:A,">="&'Graph Data'!$E$2,Transações!A:A,"<="&'Graph Data'!$E$3,Transações!C:C,'Graph Data'!A118)) -> 
B119: =IF(SUMIFS(Transações!D:D,Transações!A:A,">="&'Graph Data'!$E$2,Transações!A:A,"<="&'Graph Data'!$E$3,Transações!C:C,'Graph Data'!A119)=0,NA(),SUMIFS(Transações!D:D,Transações!A:A,">="&'Graph Data'!$E$2,Transações!A:A,"<="&'Graph Data'!$E$3,Transações!C:C,'Graph Data'!A119)) -> 
B120: =IF(SUMIFS(Transações!D:D,Transações!A:A,">="&'Graph Data'!$E$2,Transações!A:A,"<="&'Graph Data'!$E$3,Transações!C:C,'Graph Data'!A120)=0,NA(),SUMIFS(Transações!D:D,Transações!A:A,">="&'Graph Data'!$E$2,Transações!A:A,"<="&'Graph Data'!$E$3,Transações!C:C,'Graph Data'!A120)) -> 
B121: =IF(SUMIFS(Transações!D:D,Transações!A:A,">="&'Graph Data'!$E$2,Transações!A:A,"<="&'Graph Data'!$E$3,Transações!C:C,'Graph Data'!A121)=0,NA(),SUMIFS(Transações!D:D,Transações!A:A,">="&'Graph Data'!$E$2,Transações!A:A,"<="&'Graph Data'!$E$3,Transações!C:C,'Graph Data'!A121)) -> 
B122: =IF(SUMIFS(Transações!D:D,Transações!A:A,">="&'Graph Data'!$E$2,Transações!A:A,"<="&'Graph Data'!$E$3,Transações!C:C,'Graph Data'!A122)=0,NA(),SUMIFS(Transações!D:D,Transações!A:A,">="&'Graph Data'!$E$2,Transações!A:A,"<="&'Graph Data'!$E$3,Transações!C:C,'Graph Data'!A122)) -> 
B123: =IF(SUMIFS(Transações!D:D,Transações!A:A,">="&'Graph Data'!$E$2,Transações!A:A,"<="&'Graph Data'!$E$3,Transações!C:C,'Graph Data'!A123)=0,NA(),SUMIFS(Transações!D:D,Transações!A:A,">="&'Graph Data'!$E$2,Transações!A:A,"<="&'Graph Data'!$E$3,Transações!C:C,'Graph Data'!A123)) -> 
B124: =IF(SUMIFS(Transações!D:D,Transações!A:A,">="&'Graph Data'!$E$2,Transações!A:A,"<="&'Graph Data'!$E$3,Transações!C:C,'Graph Data'!A124)=0,NA(),SUMIFS(Transações!D:D,Transações!A:A,">="&'Graph Data'!$E$2,Transações!A:A,"<="&'Graph Data'!$E$3,Transações!C:C,'Graph Data'!A124)) -> 
B125: =IF(SUMIFS(Transações!D:D,Transações!A:A,">="&'Graph Data'!$E$2,Transações!A:A,"<="&'Graph Data'!$E$3,Transações!C:C,'Graph Data'!A125)=0,NA(),SUMIFS(Transações!D:D,Transações!A:A,">="&'Graph Data'!$E$2,Transações!A:A,"<="&'Graph Data'!$E$3,Transações!C:C,'Graph Data'!A125)) -> 
B126: =IF(SUMIFS(Transações!D:D,Transações!A:A,">="&'Graph Data'!$E$2,Transações!A:A,"<="&'Graph Data'!$E$3,Transações!C:C,'Graph Data'!A126)=0,NA(),SUMIFS(Transações!D:D,Transações!A:A,">="&'Graph Data'!$E$2,Transações!A:A,"<="&'Graph Data'!$E$3,Transações!C:C,'Graph Data'!A126)) -> 
B127: =IF(SUMIFS(Transações!D:D,Transações!A:A,">="&'Graph Data'!$E$2,Transações!A:A,"<="&'Graph Data'!$E$3,Transações!C:C,'Graph Data'!A127)=0,NA(),SUMIFS(Transações!D:D,Transações!A:A,">="&'Graph Data'!$E$2,Transações!A:A,"<="&'Graph Data'!$E$3,Transações!C:C,'Graph Data'!A127)) -> 
B128: =IF(SUMIFS(Transações!D:D,Transações!A:A,">="&'Graph Data'!$E$2,Transações!A:A,"<="&'Graph Data'!$E$3,Transações!C:C,'Graph Data'!A128)=0,NA(),SUMIFS(Transações!D:D,Transações!A:A,">="&'Graph Data'!$E$2,Transações!A:A,"<="&'Graph Data'!$E$3,Transações!C:C,'Graph Data'!A128)) -> 
B129: =IF(SUMIFS(Transações!D:D,Transações!A:A,">="&'Graph Data'!$E$2,Transações!A:A,"<="&'Graph Data'!$E$3,Transações!C:C,'Graph Data'!A129)=0,NA(),SUMIFS(Transações!D:D,Transações!A:A,">="&'Graph Data'!$E$2,Transações!A:A,"<="&'Graph Data'!$E$3,Transações!C:C,'Graph Data'!A129)) -> 
B130: =IF(SUMIFS(Transações!D:D,Transações!A:A,">="&'Graph Data'!$E$2,Transações!A:A,"<="&'Graph Data'!$E$3,Transações!C:C,'Graph Data'!A130)=0,NA(),SUMIFS(Transações!D:D,Transações!A:A,">="&'Graph Data'!$E$2,Transações!A:A,"<="&'Graph Data'!$E$3,Transações!C:C,'Graph Data'!A130)) -> 
B131: =IF(SUMIFS(Transações!D:D,Transações!A:A,">="&'Graph Data'!$E$2,Transações!A:A,"<="&'Graph Data'!$E$3,Transações!C:C,'Graph Data'!A131)=0,NA(),SUMIFS(Transações!D:D,Transações!A:A,">="&'Graph Data'!$E$2,Transações!A:A,"<="&'Graph Data'!$E$3,Transações!C:C,'Graph Data'!A131)) -> 
B132: =IF(SUMIFS(Transações!D:D,Transações!A:A,">="&'Graph Data'!$E$2,Transações!A:A,"<="&'Graph Data'!$E$3,Transações!C:C,'Graph Data'!A132)=0,NA(),SUMIFS(Transações!D:D,Transações!A:A,">="&'Graph Data'!$E$2,Transações!A:A,"<="&'Graph Data'!$E$3,Transações!C:C,'Graph Data'!A132)) -> 
B133: =IF(SUMIFS(Transações!D:D,Transações!A:A,">="&'Graph Data'!$E$2,Transações!A:A,"<="&'Graph Data'!$E$3,Transações!C:C,'Graph Data'!A133)=0,NA(),SUMIFS(Transações!D:D,Transações!A:A,">="&'Graph Data'!$E$2,Transações!A:A,"<="&'Graph Data'!$E$3,Transações!C:C,'Graph Data'!A133)) -> 
B134: =IF(SUMIFS(Transações!D:D,Transações!A:A,">="&'Graph Data'!$E$2,Transações!A:A,"<="&'Graph Data'!$E$3,Transações!C:C,'Graph Data'!A134)=0,NA(),SUMIFS(Transações!D:D,Transações!A:A,">="&'Graph Data'!$E$2,Transações!A:A,"<="&'Graph Data'!$E$3,Transações!C:C,'Graph Data'!A134)) -> 
B135: =IF(SUMIFS(Transações!D:D,Transações!A:A,">="&'Graph Data'!$E$2,Transações!A:A,"<="&'Graph Data'!$E$3,Transações!C:C,'Graph Data'!A135)=0,NA(),SUMIFS(Transações!D:D,Transações!A:A,">="&'Graph Data'!$E$2,Transações!A:A,"<="&'Graph Data'!$E$3,Transações!C:C,'Graph Data'!A135)) -> 
B136: =IF(SUMIFS(Transações!D:D,Transações!A:A,">="&'Graph Data'!$E$2,Transações!A:A,"<="&'Graph Data'!$E$3,Transações!C:C,'Graph Data'!A136)=0,NA(),SUMIFS(Transações!D:D,Transações!A:A,">="&'Graph Data'!$E$2,Transações!A:A,"<="&'Graph Data'!$E$3,Transações!C:C,'Graph Data'!A136)) -> 
B137: =IF(SUMIFS(Transações!D:D,Transações!A:A,">="&'Graph Data'!$E$2,Transações!A:A,"<="&'Graph Data'!$E$3,Transações!C:C,'Graph Data'!A137)=0,NA(),SUMIFS(Transações!D:D,Transações!A:A,">="&'Graph Data'!$E$2,Transações!A:A,"<="&'Graph Data'!$E$3,Transações!C:C,'Graph Data'!A137)) -> 
B138: =IF(SUMIFS(Transações!D:D,Transações!A:A,">="&'Graph Data'!$E$2,Transações!A:A,"<="&'Graph Data'!$E$3,Transações!C:C,'Graph Data'!A138)=0,NA(),SUMIFS(Transações!D:D,Transações!A:A,">="&'Graph Data'!$E$2,Transações!A:A,"<="&'Graph Data'!$E$3,Transações!C:C,'Graph Data'!A138)) -> 
B139: =IF(SUMIFS(Transações!D:D,Transações!A:A,">="&'Graph Data'!$E$2,Transações!A:A,"<="&'Graph Data'!$E$3,Transações!C:C,'Graph Data'!A139)=0,NA(),SUMIFS(Transações!D:D,Transações!A:A,">="&'Graph Data'!$E$2,Transações!A:A,"<="&'Graph Data'!$E$3,Transações!C:C,'Graph Data'!A139)) -> 
B140: =IF(SUMIFS(Transações!D:D,Transações!A:A,">="&'Graph Data'!$E$2,Transações!A:A,"<="&'Graph Data'!$E$3,Transações!C:C,'Graph Data'!A140)=0,NA(),SUMIFS(Transações!D:D,Transações!A:A,">="&'Graph Data'!$E$2,Transações!A:A,"<="&'Graph Data'!$E$3,Transações!C:C,'Graph Data'!A140)) -> 
B141: =IF(SUMIFS(Transações!D:D,Transações!A:A,">="&'Graph Data'!$E$2,Transações!A:A,"<="&'Graph Data'!$E$3,Transações!C:C,'Graph Data'!A141)=0,NA(),SUMIFS(Transações!D:D,Transações!A:A,">="&'Graph Data'!$E$2,Transações!A:A,"<="&'Graph Data'!$E$3,Transações!C:C,'Graph Data'!A141)) -> 
B142: =IF(SUMIFS(Transações!D:D,Transações!A:A,">="&'Graph Data'!$E$2,Transações!A:A,"<="&'Graph Data'!$E$3,Transações!C:C,'Graph Data'!A142)=0,NA(),SUMIFS(Transações!D:D,Transações!A:A,">="&'Graph Data'!$E$2,Transações!A:A,"<="&'Graph Data'!$E$3,Transações!C:C,'Graph Data'!A142)) -> 
B143: =IF(SUMIFS(Transações!D:D,Transações!A:A,">="&'Graph Data'!$E$2,Transações!A:A,"<="&'Graph Data'!$E$3,Transações!C:C,'Graph Data'!A143)=0,NA(),SUMIFS(Transações!D:D,Transações!A:A,">="&'Graph Data'!$E$2,Transações!A:A,"<="&'Graph Data'!$E$3,Transações!C:C,'Graph Data'!A143)) -> 
B144: =IF(SUMIFS(Transações!D:D,Transações!A:A,">="&'Graph Data'!$E$2,Transações!A:A,"<="&'Graph Data'!$E$3,Transações!C:C,'Graph Data'!A144)=0,NA(),SUMIFS(Transações!D:D,Transações!A:A,">="&'Graph Data'!$E$2,Transações!A:A,"<="&'Graph Data'!$E$3,Transações!C:C,'Graph Data'!A144)) -> 
B145: =IF(SUMIFS(Transações!D:D,Transações!A:A,">="&'Graph Data'!$E$2,Transações!A:A,"<="&'Graph Data'!$E$3,Transações!C:C,'Graph Data'!A145)=0,NA(),SUMIFS(Transações!D:D,Transações!A:A,">="&'Graph Data'!$E$2,Transações!A:A,"<="&'Graph Data'!$E$3,Transações!C:C,'Graph Data'!A145)) -> 
B146: =IF(SUMIFS(Transações!D:D,Transações!A:A,">="&'Graph Data'!$E$2,Transações!A:A,"<="&'Graph Data'!$E$3,Transações!C:C,'Graph Data'!A146)=0,NA(),SUMIFS(Transações!D:D,Transações!A:A,">="&'Graph Data'!$E$2,Transações!A:A,"<="&'Graph Data'!$E$3,Transações!C:C,'Graph Data'!A146)) -> 
B147: =IF(SUMIFS(Transações!D:D,Transações!A:A,">="&'Graph Data'!$E$2,Transações!A:A,"<="&'Graph Data'!$E$3,Transações!C:C,'Graph Data'!A147)=0,NA(),SUMIFS(Transações!D:D,Transações!A:A,">="&'Graph Data'!$E$2,Transações!A:A,"<="&'Graph Data'!$E$3,Transações!C:C,'Graph Data'!A147)) -> 
B148: =IF(SUMIFS(Transações!D:D,Transações!A:A,">="&'Graph Data'!$E$2,Transações!A:A,"<="&'Graph Data'!$E$3,Transações!C:C,'Graph Data'!A148)=0,NA(),SUMIFS(Transações!D:D,Transações!A:A,">="&'Graph Data'!$E$2,Transações!A:A,"<="&'Graph Data'!$E$3,Transações!C:C,'Graph Data'!A148)) -> 
B149: =IF(SUMIFS(Transações!D:D,Transações!A:A,">="&'Graph Data'!$E$2,Transações!A:A,"<="&'Graph Data'!$E$3,Transações!C:C,'Graph Data'!A149)=0,NA(),SUMIFS(Transações!D:D,Transações!A:A,">="&'Graph Data'!$E$2,Transações!A:A,"<="&'Graph Data'!$E$3,Transações!C:C,'Graph Data'!A149)) -> 
B150: =IF(SUMIFS(Transações!D:D,Transações!A:A,">="&'Graph Data'!$E$2,Transações!A:A,"<="&'Graph Data'!$E$3,Transações!C:C,'Graph Data'!A150)=0,NA(),SUMIFS(Transações!D:D,Transações!A:A,">="&'Graph Data'!$E$2,Transações!A:A,"<="&'Graph Data'!$E$3,Transações!C:C,'Graph Data'!A150)) -> 
B151: =IF(SUMIFS(Transações!D:D,Transações!A:A,">="&'Graph Data'!$E$2,Transações!A:A,"<="&'Graph Data'!$E$3,Transações!C:C,'Graph Data'!A151)=0,NA(),SUMIFS(Transações!D:D,Transações!A:A,">="&'Graph Data'!$E$2,Transações!A:A,"<="&'Graph Data'!$E$3,Transações!C:C,'Graph Data'!A151)) -> 
B152: =IF(SUMIFS(Transações!D:D,Transações!A:A,">="&'Graph Data'!$E$2,Transações!A:A,"<="&'Graph Data'!$E$3,Transações!C:C,'Graph Data'!A152)=0,NA(),SUMIFS(Transações!D:D,Transações!A:A,">="&'Graph Data'!$E$2,Transações!A:A,"<="&'Graph Data'!$E$3,Transações!C:C,'Graph Data'!A152)) -> 
B153: =IF(SUMIFS(Transações!D:D,Transações!A:A,">="&'Graph Data'!$E$2,Transações!A:A,"<="&'Graph Data'!$E$3,Transações!C:C,'Graph Data'!A153)=0,NA(),SUMIFS(Transações!D:D,Transações!A:A,">="&'Graph Data'!$E$2,Transações!A:A,"<="&'Graph Data'!$E$3,Transações!C:C,'Graph Data'!A153)) -> 
B154: =IF(SUMIFS(Transações!D:D,Transações!A:A,">="&'Graph Data'!$E$2,Transações!A:A,"<="&'Graph Data'!$E$3,Transações!C:C,'Graph Data'!A154)=0,NA(),SUMIFS(Transações!D:D,Transações!A:A,">="&'Graph Data'!$E$2,Transações!A:A,"<="&'Graph Data'!$E$3,Transações!C:C,'Graph Data'!A154)) -> 
B155: =IF(SUMIFS(Transações!D:D,Transações!A:A,">="&'Graph Data'!$E$2,Transações!A:A,"<="&'Graph Data'!$E$3,Transações!C:C,'Graph Data'!A155)=0,NA(),SUMIFS(Transações!D:D,Transações!A:A,">="&'Graph Data'!$E$2,Transações!A:A,"<="&'Graph Data'!$E$3,Transações!C:C,'Graph Data'!A155)) -> 
B156: =IF(SUMIFS(Transações!D:D,Transações!A:A,">="&'Graph Data'!$E$2,Transações!A:A,"<="&'Graph Data'!$E$3,Transações!C:C,'Graph Data'!A156)=0,NA(),SUMIFS(Transações!D:D,Transações!A:A,">="&'Graph Data'!$E$2,Transações!A:A,"<="&'Graph Data'!$E$3,Transações!C:C,'Graph Data'!A156)) -> 
B157: =IF(SUMIFS(Transações!D:D,Transações!A:A,">="&'Graph Data'!$E$2,Transações!A:A,"<="&'Graph Data'!$E$3,Transações!C:C,'Graph Data'!A157)=0,NA(),SUMIFS(Transações!D:D,Transações!A:A,">="&'Graph Data'!$E$2,Transações!A:A,"<="&'Graph Data'!$E$3,Transações!C:C,'Graph Data'!A157)) -> 
B158: =IF(SUMIFS(Transações!D:D,Transações!A:A,">="&'Graph Data'!$E$2,Transações!A:A,"<="&'Graph Data'!$E$3,Transações!C:C,'Graph Data'!A158)=0,NA(),SUMIFS(Transações!D:D,Transações!A:A,">="&'Graph Data'!$E$2,Transações!A:A,"<="&'Graph Data'!$E$3,Transações!C:C,'Graph Data'!A158)) -> 
B159: =IF(SUMIFS(Transações!D:D,Transações!A:A,">="&'Graph Data'!$E$2,Transações!A:A,"<="&'Graph Data'!$E$3,Transações!C:C,'Graph Data'!A159)=0,NA(),SUMIFS(Transações!D:D,Transações!A:A,">="&'Graph Data'!$E$2,Transações!A:A,"<="&'Graph Data'!$E$3,Transações!C:C,'Graph Data'!A159)) -> 
B160: =IF(SUMIFS(Transações!D:D,Transações!A:A,">="&'Graph Data'!$E$2,Transações!A:A,"<="&'Graph Data'!$E$3,Transações!C:C,'Graph Data'!A160)=0,NA(),SUMIFS(Transações!D:D,Transações!A:A,">="&'Graph Data'!$E$2,Transações!A:A,"<="&'Graph Data'!$E$3,Transações!C:C,'Graph Data'!A160)) -> 
B161: =IF(SUMIFS(Transações!D:D,Transações!A:A,">="&'Graph Data'!$E$2,Transações!A:A,"<="&'Graph Data'!$E$3,Transações!C:C,'Graph Data'!A161)=0,NA(),SUMIFS(Transações!D:D,Transações!A:A,">="&'Graph Data'!$E$2,Transações!A:A,"<="&'Graph Data'!$E$3,Transações!C:C,'Graph Data'!A161)) -> 
B162: =IF(SUMIFS(Transações!D:D,Transações!A:A,">="&'Graph Data'!$E$2,Transações!A:A,"<="&'Graph Data'!$E$3,Transações!C:C,'Graph Data'!A162)=0,NA(),SUMIFS(Transações!D:D,Transações!A:A,">="&'Graph Data'!$E$2,Transações!A:A,"<="&'Graph Data'!$E$3,Transações!C:C,'Graph Data'!A162)) -> 
B163: =IF(SUMIFS(Transações!D:D,Transações!A:A,">="&'Graph Data'!$E$2,Transações!A:A,"<="&'Graph Data'!$E$3,Transações!C:C,'Graph Data'!A163)=0,NA(),SUMIFS(Transações!D:D,Transações!A:A,">="&'Graph Data'!$E$2,Transações!A:A,"<="&'Graph Data'!$E$3,Transações!C:C,'Graph Data'!A163)) -> 
B164: =IF(SUMIFS(Transações!D:D,Transações!A:A,">="&'Graph Data'!$E$2,Transações!A:A,"<="&'Graph Data'!$E$3,Transações!C:C,'Graph Data'!A164)=0,NA(),SUMIFS(Transações!D:D,Transações!A:A,">="&'Graph Data'!$E$2,Transações!A:A,"<="&'Graph Data'!$E$3,Transações!C:C,'Graph Data'!A164)) -> 
B165: =IF(SUMIFS(Transações!D:D,Transações!A:A,">="&'Graph Data'!$E$2,Transações!A:A,"<="&'Graph Data'!$E$3,Transações!C:C,'Graph Data'!A165)=0,NA(),SUMIFS(Transações!D:D,Transações!A:A,">="&'Graph Data'!$E$2,Transações!A:A,"<="&'Graph Data'!$E$3,Transações!C:C,'Graph Data'!A165)) -> 
B166: =IF(SUMIFS(Transações!D:D,Transações!A:A,">="&'Graph Data'!$E$2,Transações!A:A,"<="&'Graph Data'!$E$3,Transações!C:C,'Graph Data'!A166)=0,NA(),SUMIFS(Transações!D:D,Transações!A:A,">="&'Graph Data'!$E$2,Transações!A:A,"<="&'Graph Data'!$E$3,Transações!C:C,'Graph Data'!A166)) -> 
B167: =IF(SUMIFS(Transações!D:D,Transações!A:A,">="&'Graph Data'!$E$2,Transações!A:A,"<="&'Graph Data'!$E$3,Transações!C:C,'Graph Data'!A167)=0,NA(),SUMIFS(Transações!D:D,Transações!A:A,">="&'Graph Data'!$E$2,Transações!A:A,"<="&'Graph Data'!$E$3,Transações!C:C,'Graph Data'!A167)) -> 
B168: =IF(SUMIFS(Transações!D:D,Transações!A:A,">="&'Graph Data'!$E$2,Transações!A:A,"<="&'Graph Data'!$E$3,Transações!C:C,'Graph Data'!A168)=0,NA(),SUMIFS(Transações!D:D,Transações!A:A,">="&'Graph Data'!$E$2,Transações!A:A,"<="&'Graph Data'!$E$3,Transações!C:C,'Graph Data'!A168)) -> 
B169: =IF(SUMIFS(Transações!D:D,Transações!A:A,">="&'Graph Data'!$E$2,Transações!A:A,"<="&'Graph Data'!$E$3,Transações!C:C,'Graph Data'!A169)=0,NA(),SUMIFS(Transações!D:D,Transações!A:A,">="&'Graph Data'!$E$2,Transações!A:A,"<="&'Graph Data'!$E$3,Transações!C:C,'Graph Data'!A169)) -> 
B170: =IF(SUMIFS(Transações!D:D,Transações!A:A,">="&'Graph Data'!$E$2,Transações!A:A,"<="&'Graph Data'!$E$3,Transações!C:C,'Graph Data'!A170)=0,NA(),SUMIFS(Transações!D:D,Transações!A:A,">="&'Graph Data'!$E$2,Transações!A:A,"<="&'Graph Data'!$E$3,Transações!C:C,'Graph Data'!A170)) -> 
B171: =IF(SUMIFS(Transações!D:D,Transações!A:A,">="&'Graph Data'!$E$2,Transações!A:A,"<="&'Graph Data'!$E$3,Transações!C:C,'Graph Data'!A171)=0,NA(),SUMIFS(Transações!D:D,Transações!A:A,">="&'Graph Data'!$E$2,Transações!A:A,"<="&'Graph Data'!$E$3,Transações!C:C,'Graph Data'!A171)) -> 
B172: =IF(SUMIFS(Transações!D:D,Transações!A:A,">="&'Graph Data'!$E$2,Transações!A:A,"<="&'Graph Data'!$E$3,Transações!C:C,'Graph Data'!A172)=0,NA(),SUMIFS(Transações!D:D,Transações!A:A,">="&'Graph Data'!$E$2,Transações!A:A,"<="&'Graph Data'!$E$3,Transações!C:C,'Graph Data'!A172)) -> 
B173: =IF(SUMIFS(Transações!D:D,Transações!A:A,">="&'Graph Data'!$E$2,Transações!A:A,"<="&'Graph Data'!$E$3,Transações!C:C,'Graph Data'!A173)=0,NA(),SUMIFS(Transações!D:D,Transações!A:A,">="&'Graph Data'!$E$2,Transações!A:A,"<="&'Graph Data'!$E$3,Transações!C:C,'Graph Data'!A173)) -> 
B174: =IF(SUMIFS(Transações!D:D,Transações!A:A,">="&'Graph Data'!$E$2,Transações!A:A,"<="&'Graph Data'!$E$3,Transações!C:C,'Graph Data'!A174)=0,NA(),SUMIFS(Transações!D:D,Transações!A:A,">="&'Graph Data'!$E$2,Transações!A:A,"<="&'Graph Data'!$E$3,Transações!C:C,'Graph Data'!A174)) -> 
B175: =IF(SUMIFS(Transações!D:D,Transações!A:A,">="&'Graph Data'!$E$2,Transações!A:A,"<="&'Graph Data'!$E$3,Transações!C:C,'Graph Data'!A175)=0,NA(),SUMIFS(Transações!D:D,Transações!A:A,">="&'Graph Data'!$E$2,Transações!A:A,"<="&'Graph Data'!$E$3,Transações!C:C,'Graph Data'!A175)) -> 
B176: =IF(SUMIFS(Transações!D:D,Transações!A:A,">="&'Graph Data'!$E$2,Transações!A:A,"<="&'Graph Data'!$E$3,Transações!C:C,'Graph Data'!A176)=0,NA(),SUMIFS(Transações!D:D,Transações!A:A,">="&'Graph Data'!$E$2,Transações!A:A,"<="&'Graph Data'!$E$3,Transações!C:C,'Graph Data'!A176)) -> 
B177: =IF(SUMIFS(Transações!D:D,Transações!A:A,">="&'Graph Data'!$E$2,Transações!A:A,"<="&'Graph Data'!$E$3,Transações!C:C,'Graph Data'!A177)=0,NA(),SUMIFS(Transações!D:D,Transações!A:A,">="&'Graph Data'!$E$2,Transações!A:A,"<="&'Graph Data'!$E$3,Transações!C:C,'Graph Data'!A177)) -> 
B178: =IF(SUMIFS(Transações!D:D,Transações!A:A,">="&'Graph Data'!$E$2,Transações!A:A,"<="&'Graph Data'!$E$3,Transações!C:C,'Graph Data'!A178)=0,NA(),SUMIFS(Transações!D:D,Transações!A:A,">="&'Graph Data'!$E$2,Transações!A:A,"<="&'Graph Data'!$E$3,Transações!C:C,'Graph Data'!A178)) -> 
B179: =IF(SUMIFS(Transações!D:D,Transações!A:A,">="&'Graph Data'!$E$2,Transações!A:A,"<="&'Graph Data'!$E$3,Transações!C:C,'Graph Data'!A179)=0,NA(),SUMIFS(Transações!D:D,Transações!A:A,">="&'Graph Data'!$E$2,Transações!A:A,"<="&'Graph Data'!$E$3,Transações!C:C,'Graph Data'!A179)) -> 
B180: =IF(SUMIFS(Transações!D:D,Transações!A:A,">="&'Graph Data'!$E$2,Transações!A:A,"<="&'Graph Data'!$E$3,Transações!C:C,'Graph Data'!A180)=0,NA(),SUMIFS(Transações!D:D,Transações!A:A,">="&'Graph Data'!$E$2,Transações!A:A,"<="&'Graph Data'!$E$3,Transações!C:C,'Graph Data'!A180)) -> 
B181: =IF(SUMIFS(Transações!D:D,Transações!A:A,">="&'Graph Data'!$E$2,Transações!A:A,"<="&'Graph Data'!$E$3,Transações!C:C,'Graph Data'!A181)=0,NA(),SUMIFS(Transações!D:D,Transações!A:A,">="&'Graph Data'!$E$2,Transações!A:A,"<="&'Graph Data'!$E$3,Transações!C:C,'Graph Data'!A181)) -> 
B182: =IF(SUMIFS(Transações!D:D,Transações!A:A,">="&'Graph Data'!$E$2,Transações!A:A,"<="&'Graph Data'!$E$3,Transações!C:C,'Graph Data'!A182)=0,NA(),SUMIFS(Transações!D:D,Transações!A:A,">="&'Graph Data'!$E$2,Transações!A:A,"<="&'Graph Data'!$E$3,Transações!C:C,'Graph Data'!A182)) -> 
B183: =IF(SUMIFS(Transações!D:D,Transações!A:A,">="&'Graph Data'!$E$2,Transações!A:A,"<="&'Graph Data'!$E$3,Transações!C:C,'Graph Data'!A183)=0,NA(),SUMIFS(Transações!D:D,Transações!A:A,">="&'Graph Data'!$E$2,Transações!A:A,"<="&'Graph Data'!$E$3,Transações!C:C,'Graph Data'!A183)) -> 
B184: =IF(SUMIFS(Transações!D:D,Transações!A:A,">="&'Graph Data'!$E$2,Transações!A:A,"<="&'Graph Data'!$E$3,Transações!C:C,'Graph Data'!A184)=0,NA(),SUMIFS(Transações!D:D,Transações!A:A,">="&'Graph Data'!$E$2,Transações!A:A,"<="&'Graph Data'!$E$3,Transações!C:C,'Graph Data'!A184)) -> 
B185: =IF(SUMIFS(Transações!D:D,Transações!A:A,">="&'Graph Data'!$E$2,Transações!A:A,"<="&'Graph Data'!$E$3,Transações!C:C,'Graph Data'!A185)=0,NA(),SUMIFS(Transações!D:D,Transações!A:A,">="&'Graph Data'!$E$2,Transações!A:A,"<="&'Graph Data'!$E$3,Transações!C:C,'Graph Data'!A185)) -> 
B186: =IF(SUMIFS(Transações!D:D,Transações!A:A,">="&'Graph Data'!$E$2,Transações!A:A,"<="&'Graph Data'!$E$3,Transações!C:C,'Graph Data'!A186)=0,NA(),SUMIFS(Transações!D:D,Transações!A:A,">="&'Graph Data'!$E$2,Transações!A:A,"<="&'Graph Data'!$E$3,Transações!C:C,'Graph Data'!A186)) -> 
B187: =IF(SUMIFS(Transações!D:D,Transações!A:A,">="&'Graph Data'!$E$2,Transações!A:A,"<="&'Graph Data'!$E$3,Transações!C:C,'Graph Data'!A187)=0,NA(),SUMIFS(Transações!D:D,Transações!A:A,">="&'Graph Data'!$E$2,Transações!A:A,"<="&'Graph Data'!$E$3,Transações!C:C,'Graph Data'!A187)) -> 
B188: =IF(SUMIFS(Transações!D:D,Transações!A:A,">="&'Graph Data'!$E$2,Transações!A:A,"<="&'Graph Data'!$E$3,Transações!C:C,'Graph Data'!A188)=0,NA(),SUMIFS(Transações!D:D,Transações!A:A,">="&'Graph Data'!$E$2,Transações!A:A,"<="&'Graph Data'!$E$3,Transações!C:C,'Graph Data'!A188)) -> 
B189: =IF(SUMIFS(Transações!D:D,Transações!A:A,">="&'Graph Data'!$E$2,Transações!A:A,"<="&'Graph Data'!$E$3,Transações!C:C,'Graph Data'!A189)=0,NA(),SUMIFS(Transações!D:D,Transações!A:A,">="&'Graph Data'!$E$2,Transações!A:A,"<="&'Graph Data'!$E$3,Transações!C:C,'Graph Data'!A189)) -> 
B190: =IF(SUMIFS(Transações!D:D,Transações!A:A,">="&'Graph Data'!$E$2,Transações!A:A,"<="&'Graph Data'!$E$3,Transações!C:C,'Graph Data'!A190)=0,NA(),SUMIFS(Transações!D:D,Transações!A:A,">="&'Graph Data'!$E$2,Transações!A:A,"<="&'Graph Data'!$E$3,Transações!C:C,'Graph Data'!A190)) -> 
B191: =IF(SUMIFS(Transações!D:D,Transações!A:A,">="&'Graph Data'!$E$2,Transações!A:A,"<="&'Graph Data'!$E$3,Transações!C:C,'Graph Data'!A191)=0,NA(),SUMIFS(Transações!D:D,Transações!A:A,">="&'Graph Data'!$E$2,Transações!A:A,"<="&'Graph Data'!$E$3,Transações!C:C,'Graph Data'!A191)) -> 
B192: =IF(SUMIFS(Transações!D:D,Transações!A:A,">="&'Graph Data'!$E$2,Transações!A:A,"<="&'Graph Data'!$E$3,Transações!C:C,'Graph Data'!A192)=0,NA(),SUMIFS(Transações!D:D,Transações!A:A,">="&'Graph Data'!$E$2,Transações!A:A,"<="&'Graph Data'!$E$3,Transações!C:C,'Graph Data'!A192)) -> 
B193: =IF(SUMIFS(Transações!D:D,Transações!A:A,">="&'Graph Data'!$E$2,Transações!A:A,"<="&'Graph Data'!$E$3,Transações!C:C,'Graph Data'!A193)=0,NA(),SUMIFS(Transações!D:D,Transações!A:A,">="&'Graph Data'!$E$2,Transações!A:A,"<="&'Graph Data'!$E$3,Transações!C:C,'Graph Data'!A193)) -> 
B194: =IF(SUMIFS(Transações!D:D,Transações!A:A,">="&'Graph Data'!$E$2,Transações!A:A,"<="&'Graph Data'!$E$3,Transações!C:C,'Graph Data'!A194)=0,NA(),SUMIFS(Transações!D:D,Transações!A:A,">="&'Graph Data'!$E$2,Transações!A:A,"<="&'Graph Data'!$E$3,Transações!C:C,'Graph Data'!A194)) -> 
B195: =IF(SUMIFS(Transações!D:D,Transações!A:A,">="&'Graph Data'!$E$2,Transações!A:A,"<="&'Graph Data'!$E$3,Transações!C:C,'Graph Data'!A195)=0,NA(),SUMIFS(Transações!D:D,Transações!A:A,">="&'Graph Data'!$E$2,Transações!A:A,"<="&'Graph Data'!$E$3,Transações!C:C,'Graph Data'!A195)) -> 
B196: =IF(SUMIFS(Transações!D:D,Transações!A:A,">="&'Graph Data'!$E$2,Transações!A:A,"<="&'Graph Data'!$E$3,Transações!C:C,'Graph Data'!A196)=0,NA(),SUMIFS(Transações!D:D,Transações!A:A,">="&'Graph Data'!$E$2,Transações!A:A,"<="&'Graph Data'!$E$3,Transações!C:C,'Graph Data'!A196)) -> 
B197: =IF(SUMIFS(Transações!D:D,Transações!A:A,">="&'Graph Data'!$E$2,Transações!A:A,"<="&'Graph Data'!$E$3,Transações!C:C,'Graph Data'!A197)=0,NA(),SUMIFS(Transações!D:D,Transações!A:A,">="&'Graph Data'!$E$2,Transações!A:A,"<="&'Graph Data'!$E$3,Transações!C:C,'Graph Data'!A197)) -> 
B198: =IF(SUMIFS(Transações!D:D,Transações!A:A,">="&'Graph Data'!$E$2,Transações!A:A,"<="&'Graph Data'!$E$3,Transações!C:C,'Graph Data'!A198)=0,NA(),SUMIFS(Transações!D:D,Transações!A:A,">="&'Graph Data'!$E$2,Transações!A:A,"<="&'Graph Data'!$E$3,Transações!C:C,'Graph Data'!A198)) -> 
B199: =IF(SUMIFS(Transações!D:D,Transações!A:A,">="&'Graph Data'!$E$2,Transações!A:A,"<="&'Graph Data'!$E$3,Transações!C:C,'Graph Data'!A199)=0,NA(),SUMIFS(Transações!D:D,Transações!A:A,">="&'Graph Data'!$E$2,Transações!A:A,"<="&'Graph Data'!$E$3,Transações!C:C,'Graph Data'!A199)) -> 
B200: =IF(SUMIFS(Transações!D:D,Transações!A:A,">="&'Graph Data'!$E$2,Transações!A:A,"<="&'Graph Data'!$E$3,Transações!C:C,'Graph Data'!A200)=0,NA(),SUMIFS(Transações!D:D,Transações!A:A,">="&'Graph Data'!$E$2,Transações!A:A,"<="&'Graph Data'!$E$3,Transações!C:C,'Graph Data'!A200)) -> 
... 800 more rows

Sheet Tags (hidden)
A1: Tags
A2: Mercado
A3: Aluguel
A4: Salário
A5: Viagem
A6: Lazer
A7: Transporte

Sheet Transações
A1: Data | B1: Tipo | C1: Transação | D1: Saída | E1: Entrada | F1: Observações | G1: Ano
A2: 2022-01-12 | B2: Entrada | C2: Aluguel | E2: 12000 | G2: 2022
A3: 2022-01-22 | B3: Saída | C3: Viagem | D3: 6500.25 | G3: 2022
A4: 2022-01-30 | B4: Saída | C4: Transporte | D4: 250.5 | G4: 2022
A5: 2022-02-02 | B5: Saída | C5: Transporte | D5: 200 | G5: 2022
A6: 2022-02-05 | B6: Entrada | C6: Salário | E6: 2500 | G6: 2022
A7: 2022-02-10 | B7: Saída | C7: Aluguel | D7: 1000 | G7: 2022
A8: 2022-02-10 | B8: Saída | C8: Transporte | D8: 250 | G8: 2022
A9: 2022-02-12 | B9: Saída | C9: Aluguel | D9: 150.5 | G9: 2022
A10: 2022-04-14 | B10: Saída | C10: Aluguel | D10: 200 | G10: 2022
A11: 2021-04-26 | B11: Entrada | C11: Salário | E11: 1000 | G11: 2021
A12: 2022-04-12 | B12: Entrada | C12: Salário | E12: 1000 | G12: 2022
